bitfinex/quotes_SOLUSD_20250226
["timestamp","ask_amount","ask_price","bid_price","bid_amount"]
[1740590236258,1.82824206,137.27,137.19,20.0]
[1740590236430,1.82824206,137.27,137.19,21.0]
[1740590236831,1.82824206,137.27,137.19,20.0]
[1740590238049,82.9,137.29,137.23,20.0]
[1740590238460,0.063,137.31,137.24,21.0]
[1740590238637,0.063,137.31,137.24,20.0]
[1740590238837,0.063,137.31,137.23,20.0]
[1740590239051,0.063,137.31,137.23,21.0]
[1740590239258,82.026,137.32,137.23,21.0]
[1740590239456,1.82763422,137.3,137.24,20.0]
[1740590240051,1.82763422,137.3,137.27,20.0]
[1740590240441,1.82763422,137.3,137.27,102.4]
[1740590240641,1.82763422,137.3,137.29,20.0]
[1740590241056,83.79382333,137.37,137.3,20.0]
[1740590241260,82.026,137.36,137.27,82.4]
[1740590241657,82.026,137.36,137.3,20.0]
[1740590241859,82.026,137.35,137.3,20.0]
[1740590242238,83.85306844,137.35,137.3,20.0]
[1740590242947,83.85306844,137.35,137.27,83.4]
[1740590243143,83.85306844,137.35,137.3,20.0]
[1740590243454,1.82706844,137.35,137.31,27.2826]
[1740590243654,1.82706844,137.35,137.31,28.2826]
[1740590243858,82.026,137.37,137.31,28.2826]
[1740590244165,12.28164977,137.42,137.31,28.2826]
[1740590244166,82.026,137.41,137.31,110.6825]
[1740590244373,82.026,137.41,137.31,248.4825]
[1740590244548,82.026,137.41,137.31,239.2]
[1740590244750,82.026,137.41,137.31,240.2]
[1740590245174,82.026,137.4,137.31,102.4]
[1740590245350,83.85240014,137.4,137.31,102.4]
[1740590246074,1.82640014,137.39,137.31,102.4]
[1740590246363,101.24429514,137.38,137.26,87.12242899]
[1740590246542,82.026,137.37,137.31,20.0]
[1740590246742,82.026,137.36,137.31,20.0]
[1740590246939,82.026,137.36,137.28,89.62]
[1740590247171,82.026,137.38,137.31,20.0]
[1740590247666,82.026,137.38,137.31,21.0]
[1740590247876,0.063,137.39,137.35,20.0]
[1740590248064,0.063,137.39,137.36,20.0]
[1740590248583,0.063,137.39,137.33,7.22]
[1740590248871,0.063,137.39,137.36,20.0]
[1740590249369,0.063,137.39,137.36,102.4]
[1740590250245,0.063,137.39,137.36,241.2]
[1740590250445,0.063,137.39,137.37,1.52794845]
[1740590250648,0.063,137.39,137.38,7.22]
[1740590250874,0.063,137.39,137.38,89.62]
[1740590251573,0.063,137.39,137.38,82.4]
[1740590252875,0.063,137.39,137.33,7.22]
[1740590253177,0.063,137.39,137.38,20.0]
[1740590253372,0.063,137.39,137.38,27.22]
[1740590253609,0.063,137.39,137.34,89.62]
[1740590254061,0.063,137.39,137.38,20.56864628]
[1740590254263,0.063,137.42,137.4,20.21829514]
[1740590254456,0.063,137.42,137.41,1.52757359]
[1740590254654,0.063,137.42,137.41,84.92757359]
[1740590255266,0.063,137.42,137.41,89.6774]
[1740590255466,0.063,137.42,137.41,90.6774]
[1740590256189,0.063,137.42,137.41,247.69569514]
[1740590257260,0.063,137.42,137.41,219.2]
[1740590257672,0.063,137.42,137.41,227.4774]
[1740590257972,0.063,137.42,137.41,247.69569514]
[1740590259411,0.063,137.42,137.41,250.38741939]
[1740590260188,0.063,137.42,137.41,251.38741939]
[1740590260389,0.063,137.42,137.41,250.38741939]
[1740590260777,0.063,137.42,137.41,251.38741939]
[1740590260971,89.973,137.52,137.41,244.11001939]
[1740590261193,7.947,137.52,137.45,20.0]
[1740590261495,0.063,137.53,137.47,38.933972]
[1740590261672,0.063,137.53,137.47,39.07613357]
[1740590261876,0.063,137.53,137.47,260.41829514]
[1740590262689,0.063,137.53,137.47,258.41829514]
[1740590262889,0.063,137.53,137.47,267.69259514]
[1740590264684,0.063,137.53,137.47,274.20669514]
[1740590264993,0.063,137.53,137.51,20.56864628]
[1740590265196,0.063,137.53,137.51,89.62]
[1740590265494,0.063,137.53,137.51,7.22]
[1740590265694,0.063,137.53,137.48,82.4]
[1740590265897,0.063,137.53,137.51,20.0]
[1740590266105,0.063,137.53,137.52,20.0]
[1740590267498,0.063,137.53,137.51,20.0]
[1740590270609,0.063,137.53,137.47,3.63220644]
[1740590270898,0.063,137.53,137.5,20.0]
[1740590271081,0.063,137.53,137.51,20.0]
[1740590271600,0.063,137.53,137.51,102.4]
[1740590271780,0.063,137.53,137.51,82.4]
[1740590271985,0.063,137.53,137.51,89.6]
[1740590273286,0.063,137.53,137.51,96.8719]
[1740590274108,0.063,137.53,137.52,20.21829514]
[1740590274328,0.063,137.53,137.52,240.41829514]
[1740590275405,0.063,137.53,137.52,82.4]
[1740590276908,0.063,137.53,137.51,7.2]
[1740590277083,0.063,137.53,137.52,20.0]
[1740590278008,0.063,137.53,137.51,7.2]
[1740590278515,0.063,137.53,137.52,20.0]
[1740590279385,0.063,137.53,137.52,27.2716]
[1740590279704,0.063,137.53,137.52,46.48989514]
[1740590279881,0.063,137.53,137.52,48.48989514]
[1740590280500,0.063,137.53,137.52,267.68989514]
[1740590280708,0.063,137.53,137.52,266.68989514]
[1740590281296,0.063,137.53,137.52,265.54773357]
[1740590281911,0.063,137.53,137.52,267.68989514]
[1740590282894,6.4461,137.62,137.52,267.68989514]
[1740590282895,0.063,137.62,137.57,1.0]
[1740590283108,0.063,137.62,137.61,20.0]
[1740590283687,0.063,137.62,137.59,82.4]
[1740590284499,1.82296601,137.61,137.59,82.4]
[1740590285000,1.82296601,137.61,137.55,82.4]
[1740590285398,1.82296601,137.61,137.54,7.2]
[1740590285617,1.82296601,137.61,137.57,20.0]
[1740590286139,1.82296601,137.6,137.57,20.0]
[1740590287503,7.8764,137.58,137.54,7.2]
[1740590287796,7.8764,137.58,137.55,20.0]
[1740590288398,1.5593,137.58,137.55,20.0]
[1740590288798,1.82296601,137.57,137.55,20.0]
[1740590289811,1.82296601,137.57,137.52,0.03]
[1740590290209,1.82296601,137.57,137.53,20.0]
[1740590291225,6.3171,137.61,137.57,20.0]
[1740590291414,6.3171,137.61,137.59,20.0]
[1740590291609,6.3171,137.61,137.56,82.4]
[1740590291811,82.45248471,137.6,137.52,0.03]
[1740590292021,1.99358471,137.58,137.52,0.03]
[1740590292326,84.01958471,137.58,137.52,0.03]
[1740590292520,82.026,137.57,137.52,0.03]
[1740590292915,6.2789,137.56,137.52,0.03]
[1740590293320,0.42648471,137.55,137.52,0.03]
[1740590293515,82.45248471,137.55,137.52,0.03]
[1740590293713,82.026,137.55,137.52,0.03]
[1740590294120,1.82410224,137.54,137.52,0.03]
[1740590294527,1.5073,137.53,137.52,0.03]
[1740590295213,3.33140224,137.53,137.52,0.03]
[1740590296134,1.82410224,137.53,137.52,20.03]
[1740590296327,1.82410224,137.53,137.52,121.50613357]
[1740590296531,1.82410224,137.53,137.52,261.97457853]
[1740590296849,1.82410224,137.53,137.52,260.44829514]
[1740590297553,1.82410224,137.53,137.52,267.71989514]
[1740590297713,1.82410224,137.53,137.52,265.57773357]
[1740590298025,1.82410224,137.53,137.52,266.57773357]
[1740590298350,1.82410224,137.53,137.52,239.23]
[1740590298514,1.82410224,137.53,137.52,239.65648471]
[1740590298832,1.67375047,137.59,137.56,20.0]
[1740590300035,1.67375047,137.59,137.56,27.2694]
[1740590300238,6.4946,137.6,137.56,27.2694]
[1740590300411,1.5684,137.62,137.57,18.64964886]
[1740590300621,0.063,137.62,137.6,20.0]
[1740590301934,0.063,137.62,137.54,7.34216157]
[1740590302131,0.063,137.62,137.54,7.2]
[1740590302314,0.063,137.62,137.57,20.0]
[1740590302515,82.089,137.62,137.57,20.0]
[1740590302718,82.089,137.62,137.54,7.2]
[1740590302935,1.6085,137.61,137.54,7.2]
[1740590303129,1.6085,137.61,137.57,20.0]
[1740590303737,1.6085,137.61,137.54,7.2]
[1740590303935,1.6085,137.61,137.57,20.0]
[1740590304150,0.42648471,137.6,137.52,82.43]
[1740590304441,82.45248471,137.6,137.52,7.23]
[1740590304632,1.6562,137.56,137.52,0.03]
[1740590304826,83.6822,137.56,137.52,0.03]
[1740590306038,6.5303,137.55,137.52,0.03]
[1740590306345,88.5563,137.55,137.52,0.03]
[1740590307443,19.07613357,137.54,137.52,0.0001]
[1740590307613,1.6183,137.51,137.47,0.03]
[1740590307818,6.0954,137.49,137.47,0.03]
[1740590309226,82.026,137.48,137.47,0.03]
[1740590309428,82.026,137.48,137.4,82.4]
[1740590309429,82.45248471,137.48,137.4,82.4]
[1740590309849,82.026,137.47,137.4,82.4]
[1740590310150,1.5779,137.45,137.38,0.03]
[1740590310333,82.026,137.44,137.4,20.0]
[1740590311153,82.026,137.44,137.38,0.03]
[1740590311154,6.5185,137.43,137.38,0.03]
[1740590311548,8.34401101,137.43,137.38,0.03]
[1740590312647,1.82551101,137.42,137.38,0.03]
[1740590313436,82.026,137.41,137.38,0.03]
[1740590313631,82.026,137.4,137.38,0.03]
[1740590314830,1.82551101,137.39,137.38,0.03]
[1740590315162,83.85151101,137.39,137.38,0.03]
[1740590316351,82.026,137.39,137.38,0.03]
[1740590316552,13.86066157,137.43,137.38,0.03]
[1740590317065,0.14216157,137.42,137.38,0.03]
[1740590317233,103.01211847,137.42,137.38,0.03]
[1740590317553,0.14216157,137.4,137.38,0.03]
[1740590317754,82.16816157,137.4,137.38,0.03]
[1740590317937,0.14216157,137.38,137.34,0.03]
[1740590318136,6.39946157,137.36,137.34,0.03]
[1740590318325,1.80456157,137.35,137.34,0.03]
[1740590318854,83.83056157,137.35,137.34,0.03]
[1740590319227,85.65652981,137.35,137.34,0.03]
[1740590320447,85.65652981,137.35,137.34,0.0001]
[1740590321857,83.6884,137.35,137.34,0.0001]
[1740590322037,83.83056157,137.35,137.34,0.0001]
[1740590322756,1.6624,137.35,137.34,0.0001]
[1740590322945,82.026,137.38,137.34,0.0001]
[1740590323636,0.14216157,137.37,137.34,0.0001]
[1740590324036,19.21829514,137.37,137.34,0.0001]
[1740590324257,20.98611847,137.37,137.34,0.0001]
[1740590325060,0.14216157,137.35,137.34,0.0001]
[1740590327060,19.21829514,137.35,137.34,0.0001]
[1740590327962,20.98611847,137.35,137.34,0.0001]
[1740590329156,20.98611847,137.35,137.31,0.03]
[1740590329157,0.14216157,137.33,137.22,88.6943]
[1740590329347,0.14216157,137.31,137.22,89.6943]
[1740590329543,0.14216157,137.31,137.25,20.0]
[1740590329747,83.04216157,137.31,137.22,88.6943]
[1740590329951,83.04216157,137.31,137.22,92.26365515]
[1740590330456,83.04216157,137.31,137.25,20.0]
[1740590330660,8.1795,137.35,137.29,20.0]
[1740590330962,82.9,137.38,137.29,102.4]
[1740590331359,18.64964886,137.37,137.29,102.4]
[1740590331541,0.14216157,137.35,137.29,102.4]
[1740590331864,83.04216157,137.35,137.29,20.0]
[1740590332171,82.9,137.35,137.27,219.2]
[1740590333259,83.04216157,137.35,137.34,0.03]
[1740590333842,83.04216157,137.35,137.26,10.95667927]
[1740590333843,0.14216157,137.29,137.2,82.43]
[1740590334060,83.04216157,137.29,137.2,82.43]
[1740590334259,0.14216157,137.25,137.2,0.03]
[1740590334444,0.14216157,137.23,137.2,0.03]
[1740590334647,83.04216157,137.23,137.2,0.03]
[1740590334946,1.5795,137.17,137.09,82.4]
[1740590335147,8.22,137.16,137.09,82.4]
[1740590335347,8.22,137.16,137.07,82.4]
[1740590335547,82.9,137.15,137.07,82.4]
[1740590335757,82.9,137.14,137.05,82.4]
[1740590335958,19.21829514,137.15,137.05,1.0]
[1740590336151,84.66782333,137.14,137.05,1.0]
[1740590336379,82.9,137.13,137.06,1.0]
[1740590336546,82.9,137.16,137.06,83.4]
[1740590336748,82.9,137.16,137.09,20.0]
[1740590336976,82.9,137.16,137.09,82.4]
[1740590337655,82.9,137.16,137.12,20.0]
[1740590338677,82.9,137.16,137.09,82.4]
[1740590338843,82.9,137.15,137.06,245.06964886]
[1740590339045,82.9,137.14,137.06,82.4]
[1740590339278,0.56864628,137.11,137.04,0.03]
[1740590339586,82.9,137.1,137.04,0.03]
[1740590339750,82.9,137.1,137.05,20.0]
[1740590339948,8.22,137.14,137.05,20.0]
[1740590339949,84.66782333,137.13,137.05,20.0]
[1740590340279,0.56864628,137.12,137.04,0.03]
[1740590340480,0.56864628,137.1,137.04,0.03]
[1740590340659,84.66782333,137.11,137.04,0.03]
[1740590340983,0.56864628,137.1,137.04,0.03]
[1740590341787,84.66782333,137.11,137.04,0.03]
[1740590341954,0.56864628,137.1,137.04,0.03]
[1740590342287,0.56864628,137.08,137.04,0.03]
[1740590342585,82.9,137.07,137.04,0.03]
[1740590342987,82.9,137.06,137.04,0.03]
[1740590343483,90.8398,137.08,137.04,0.03]
[1740590343849,82.9,137.08,137.04,0.03]
[1740590344358,82.9,137.08,137.04,20.03]
[1740590344555,0.15933248,137.07,137.04,20.03]
[1740590344764,0.15933248,137.07,137.04,0.03]
[1740590345871,82.9,137.06,137.04,0.03]
[1740590347079,0.15933248,137.07,137.03,0.03]
[1740590347080,86.79716961,137.05,137.03,0.03]
[1740590347379,84.66782333,137.05,137.03,0.03]
[1740590347549,2.33646961,137.04,137.03,0.03]
[1740590348057,0.56864628,137.02,136.93,82.4]
[1740590348263,82.9,137.01,136.91,82.4]
[1740590348587,1.6078,136.99,136.94,20.0]
[1740590349351,1.6078,136.99,136.91,82.4]
[1740590350056,1.6078,136.99,136.89,7.22]
[1740590350057,83.46864628,136.98,136.89,7.22]
[1740590350250,6.0995,136.96,136.87,82.4]
[1740590350552,83.46864628,136.95,136.83,89.7079]
[1740590350870,1.76782333,136.94,136.83,82.4]
[1740590351066,0.14216157,136.93,136.83,82.4]
[1740590351256,82.9,136.93,136.86,20.0]
[1740590351877,90.76732333,136.96,136.86,102.4]
[1740590352083,88.9995,136.96,136.87,20.0]
[1740590352294,91.9678,136.99,136.88,0.28432314]
[1740590352584,1.6078,136.99,136.92,20.0]
[1740590352748,6.231,137.01,136.95,20.0]
[1740590353777,1.658,137.04,136.95,102.4]
[1740590353953,1.658,137.04,136.95,109.7016]
[1740590354160,1.658,137.04,136.96,18.933972]
[1740590355078,1.658,137.04,136.95,102.4]
[1740590355265,1.658,137.04,136.96,20.0]
[1740590356075,1.658,137.04,136.96,27.3012]
[1740590356578,1.658,137.04,136.98,20.0]
[1740590356974,1.658,137.04,136.95,89.7018]
[1740590357173,82.9,137.03,136.94,7.52]
[1740590357885,90.46,137.02,136.95,20.0]
[1740590358059,82.9,137.02,136.95,20.0]
[1740590358381,1.658,137.04,136.99,20.0]
[1740590358602,89.70713248,137.07,137.0,20.0]
[1740590359081,89.70713248,137.07,136.98,0.14216157]
[1740590359582,89.5478,137.07,136.98,18.77463952]
[1740590359775,6.6478,137.07,137.01,20.0]
[1740590359969,90.48,137.09,137.01,20.0]
[1740590360176,0.063,137.07,137.01,20.0]
[1740590361278,0.063,137.07,136.96,90.03]
[1740590361576,82.9,137.06,136.96,97.3313]
[1740590361782,82.9,137.06,136.99,20.0]
[1740590361991,1.83101369,137.06,136.99,102.4]
[1740590363186,82.963,137.07,136.99,102.4]
[1740590364765,82.963,137.07,136.99,109.6996]
[1740590365189,82.963,137.07,137.0,18.933972]
[1740590365392,82.963,137.07,137.01,7.6]
[1740590365881,1.83089505,137.06,137.01,7.6]
[1740590367063,1.83089505,137.05,137.01,7.6]
[1740590367582,1.83089505,137.05,137.03,20.0]
[1740590367989,1.83089505,137.05,137.01,90.0]
[1740590368487,0.063,137.07,137.01,90.0]
[1740590369681,1.83071258,137.06,137.01,90.0]
[1740590369887,1.83071258,137.06,137.01,7.6]
[1740590370269,1.83071258,137.06,136.98,89.7001]
[1740590370473,84.73071258,137.06,136.98,82.4]
[1740590370686,0.28432314,137.05,136.96,82.43]
[1740590370900,84.66782333,137.04,136.96,0.03]
[1740590371066,82.9,137.03,136.96,0.03]
[1740590371777,84.66782333,137.02,136.96,0.03]
[1740590372491,1.5135,137.01,136.96,0.03]
[1740590375070,84.4135,137.01,136.96,0.03]
[1740590375270,84.66782333,137.0,136.96,0.03]
[1740590375891,82.9,137.0,136.96,0.03]
[1740590376096,1.83071258,136.99,136.96,0.03]
[1740590377695,9.41071258,136.99,136.96,0.03]
[1740590377897,1.83071258,136.98,136.96,0.03]
[1740590378709,1.83071258,136.97,136.96,0.03]
[1740590380800,1.83071258,136.97,136.96,20.03]
[1740590381095,1.83071258,136.97,136.96,38.963972]
[1740590381309,1.83071258,136.97,136.96,46.54969514]
[1740590381498,1.83071258,136.97,136.96,267.28220512]
[1740590381698,1.83071258,136.97,136.96,265.465372]
[1740590383113,7.9174,137.05,136.97,18.933972]
[1740590383309,1.6397,137.05,137.0,20.0]
[1740590383492,1.6397,137.05,137.0,102.4]
[1740590383894,0.063,137.07,137.0,102.4]
[1740590384095,0.063,137.07,137.0,239.2]
[1740590384405,0.063,137.07,137.0,109.6987]
[1740590385094,0.063,137.07,137.04,20.0]
[1740590386405,0.063,137.07,137.05,20.0]
[1740590387011,0.063,137.07,136.99,219.2]
[1740590387197,0.063,137.07,136.99,89.98]
[1740590387918,0.063,137.07,136.99,97.2797]
[1740590388091,0.063,137.07,136.99,89.98]
[1740590388415,0.063,137.07,137.0,18.933972]
[1740590388597,0.063,137.07,137.03,20.0]
[1740590389517,0.063,137.07,137.0,219.2]
[1740590389729,0.063,137.07,137.0,82.4]
[1740590390031,0.063,137.07,137.0,89.6992]
[1740590390317,0.063,137.07,137.0,82.4]
[1740590391238,0.063,137.07,137.03,20.0]
[1740590391738,0.063,137.07,137.05,20.0]
[1740590392227,0.063,137.07,137.03,82.4]
[1740590392425,0.063,137.07,137.03,20.0]
[1740590393141,0.063,137.07,137.0,82.4]
[1740590393741,0.063,137.07,137.0,89.6992]
[1740590393912,0.063,137.07,137.0,82.4]
[1740590394239,0.063,137.07,137.0,89.6992]
[1740590394448,0.063,137.07,137.01,18.933972]
[1740590395735,0.063,137.07,137.01,26.232672]
[1740590397544,0.063,137.07,137.01,245.432672]
[1740590397740,0.063,137.07,137.01,226.4987]
[1740590398618,0.063,137.07,137.01,82.4]
[1740590399028,0.063,137.07,137.01,89.6986]
[1740590400149,0.063,137.07,137.02,18.933972]
[1740590400536,0.063,137.07,137.05,20.0]
[1740590400735,0.063,137.07,137.02,82.4]
[1740590401127,0.063,137.07,136.98,7.311]
[1740590401329,6.3015,137.05,136.98,82.4]
[1740590402324,1.6004,137.04,136.98,82.4]
[1740590402528,1.6004,137.04,136.97,0.03]
[1740590404853,18.933972,137.02,136.97,0.03]
[1740590405031,82.9,137.01,136.97,0.03]
[1740590405439,13.8144,137.03,136.97,0.03]
[1740590406122,18.933972,137.02,136.97,0.03]
[1740590406345,84.66782333,137.01,136.97,0.03]
[1740590406550,1.6378,137.0,136.97,0.03]
[1740590407369,1.6378,137.0,136.98,20.0]
[1740590407652,89.2344,137.03,136.98,20.0]
[1740590408438,6.3344,137.03,136.98,20.0]
[1740590408637,6.3344,137.03,136.97,0.03]
[1740590408829,1.76782333,137.02,136.97,0.03]
[1740590409025,20.41747219,137.02,136.97,0.03]
[1740590409248,18.933972,137.0,136.97,0.03]
[1740590409445,3.36062333,136.99,136.97,0.03]
[1740590409644,82.9,136.98,136.97,0.03]
[1740590409841,1.5928,136.99,136.97,0.03]
[1740590410053,7.9398,137.03,136.97,0.03]
[1740590411449,7.9398,137.03,136.97,82.43]
[1740590411642,1.6054,137.03,136.97,82.43]
[1740590411851,6.3966,137.06,137.01,20.0]
[1740590412047,0.063,137.06,137.01,102.4]
[1740590412252,0.063,137.06,137.05,20.0]
[1740590413935,0.063,137.06,137.05,128.630572]
[1740590414639,0.063,137.06,137.05,130.1620887]
[1740590415056,0.063,137.06,137.05,130.44641184]
[1740590415237,0.063,137.06,137.05,102.54216157]
[1740590415436,0.063,137.06,137.05,121.333972]
[1740590416236,0.063,137.06,137.05,259.94992519]
[1740590416460,0.063,137.06,137.05,258.41829514]
[1740590417055,0.063,137.06,137.05,239.2]
[1740590418639,0.063,137.06,137.02,226.56]
[1740590418941,0.063,137.06,137.02,89.76]
[1740590419136,0.063,137.06,137.05,20.0]
[1740590419740,0.063,137.06,137.02,226.56]
[1740590419938,0.063,137.06,137.02,89.76]
[1740590420366,0.063,137.06,137.02,82.4]
[1740590422262,6.0802,137.05,136.97,86.1363542]
[1740590422444,6.0802,137.05,136.97,82.43]
[1740590422643,6.0802,137.05,136.97,0.03]
[1740590422644,84.66782333,137.04,136.97,0.03]
[1740590423057,20.490572,137.03,136.97,0.03]
[1740590423245,82.9,137.02,136.97,0.03]
[1740590423450,82.9,137.01,136.97,0.03]
[1740590424041,84.66782333,137.01,136.97,0.03]
[1740590424650,6.2328,137.0,136.97,0.03]
[1740590424862,6.2328,136.97,136.9,82.4]
[1740590425065,90.24,136.96,136.86,82.4]
[1740590426472,2.05214647,136.95,136.86,82.4]
[1740590426844,82.9,136.94,136.86,82.4]
[1740590427358,111.22629533,136.93,136.84,0.03]
[1740590427559,19.21829514,136.91,136.84,0.03]
[1740590427771,91.98782333,136.9,136.84,0.03]
[1740590428053,82.9,136.89,136.84,0.03]
[1740590428279,9.08782333,136.9,136.84,0.03]
[1740590428448,7.32,136.9,136.84,0.03]
[1740590429142,82.9,136.89,136.84,0.03]
[1740590429349,84.66782333,136.89,136.84,0.03]
[1740590429561,101.833972,136.88,136.84,0.03]
[1740590429757,101.833972,136.88,136.74,11.44382668]
[1740590429758,0.28432314,136.84,136.74,11.44382668]
[1740590429958,1.0,136.72,136.71,22.46140674]
[1740590430165,1.0,136.68,136.66,45.64830711]
[1740590430365,7.52,136.67,136.66,45.64830711]
[1740590430571,9.08864628,136.67,136.66,45.64830711]
[1740590430752,8.08864628,136.67,136.66,45.64830711]
[1740590430951,0.28432314,136.67,136.66,45.64830711]
[1740590431147,8.82432314,136.67,136.66,31.89740711]
[1740590431346,28.75829514,136.67,136.66,34.20560891]
[1740590431551,28.75829514,136.67,136.66,9.86720891]
[1740590431759,27.75829514,136.67,136.66,9.86720891]
[1740590431952,9.10864628,136.67,136.66,9.86720891]
[1740590432147,0.14216157,136.67,136.66,9.86720891]
[1740590432353,1.0,136.71,136.66,9.86720891]
[1740590432354,0.14216157,136.7,136.66,9.86720891]
[1740590432645,0.42648471,136.7,136.69,0.03]
[1740590432859,7.58,136.71,136.69,0.03]
[1740590433361,0.14216157,136.7,136.69,0.03]
[1740590433555,0.14216157,136.7,136.66,9.86720891]
[1740590433753,0.56864628,136.7,136.66,9.86720891]
[1740590434064,1.56864628,136.7,136.66,2.3082018]
[1740590434278,22.56864628,136.67,136.66,1.8e-06]
[1740590434452,0.14216157,136.59,136.54,2.1969418]
[1740590434652,7.82216157,136.59,136.54,2.1969418]
[1740590434852,1.76782333,136.58,136.54,4.18e-05]
[1740590435377,1.0,136.63,136.54,4.18e-05]
[1740590435378,0.14216157,136.6,136.54,4.18e-05]
[1740590435585,14.49257629,136.57,136.54,4.18e-05]
[1740590436454,38.01098336,136.56,136.54,4.18e-05]
[1740590436663,50.73573632,136.56,136.44,203.45531591]
[1740590436862,50.73573632,136.56,136.44,209.19531591]
[1740590437055,2.19430804,136.55,136.44,201.45531591]
[1740590437254,7.74,136.54,136.4,113.64620599]
[1740590437570,1.56864628,136.51,136.36,7.74]
[1740590437770,36.69734809,136.49,136.36,105.90620599]
[1740590438068,9.68420689,136.48,136.36,82.4]
[1740590438267,46.66145307,136.48,136.36,82.4]
[1740590438575,0.42648471,136.47,136.36,82.4]
[1740590438881,0.42648471,136.47,136.33,97.71206292]
[1740590439050,1.42648471,136.45,136.32,105.90620599]
[1740590439250,2.92473523,136.44,136.32,54.82196541]
[1740590439452,7.82,136.43,136.32,20.0]
[1740590439652,0.14216157,136.41,136.29,20.0]
[1740590439968,9.74532126,136.43,136.31,1.0]
[1740590440375,7.82,136.43,136.31,1.0]
[1740590440570,7.82,136.43,136.32,18.79181043]
[1740590440771,7.82,136.43,136.32,0.14216157]
[1740590440964,7.82,136.43,136.31,18.64964886]
[1740590441167,9.74491211,136.43,136.3,18.64964886]
[1740590441373,9.74491211,136.43,136.28,136.8]
[1740590441578,9.74491211,136.43,136.27,0.54400025]
[1740590441786,7.82,136.43,136.31,1.0]
[1740590442072,36.69734809,136.49,136.38,0.28432314]
[1740590442263,46.86117243,136.49,136.37,18.64964886]
[1740590442469,44.93734809,136.49,136.38,0.28432314]
[1740590443557,44.93734809,136.49,136.37,18.64964886]
[1740590443767,36.0614292,136.47,136.37,18.64964886]
[1740590443959,1.92382096,136.48,136.4,0.28432314]
[1740590443960,36.97724618,136.48,136.4,0.28432314]
[1740590444162,8.24,136.49,136.43,18.64964886]
[1740590444383,36.26525692,136.52,136.42,0.28432314]
[1740590444562,47.9436097,136.53,136.44,20.0]
[1740590444955,1.92330061,136.52,136.38,15.923]
[1740590445166,0.28432314,136.49,136.38,6.1387]
[1740590445474,0.28432314,136.47,136.32,14.6364]
[1740590445692,0.28432314,136.45,136.32,6.2564]
[1740590445879,0.28432314,136.43,136.32,6.2564]
[1740590446084,1.92522911,136.42,136.29,54.82196541]
[1740590446275,0.28432314,136.44,136.32,20.0]
[1740590446460,1.92501701,136.43,136.32,20.0]
[1740590446790,125.28501285,136.47,136.35,18.933972]
[1740590446957,125.28501285,136.47,136.35,73.75593741]
[1740590447157,123.36,136.47,136.35,73.75593741]
[1740590447358,1.92414794,136.46,136.35,18.64964886]
[1740590447662,1.92414794,136.46,136.36,20.0]
[1740590447892,1.92414794,136.46,136.37,18.64964886]
[1740590448090,8.4,136.48,136.41,18.64964886]